bitfinex/quotes_ETHUSD_20251010
["timestamp","ask_amount","ask_price","bid_price","bid_amount"]
[1760118498041,0.001,4104.5,4104.4,4.3252]
[1760118498244,0.001,4105.0,4104.9,4.98971293]
[1760118498444,0.001,4105.6,4105.3,0.6336]
[1760118498618,0.001,4106.1,4105.9,3.06911961]
[1760118498823,0.001,4106.1,4105.9,6.82411961]
[1760118499024,0.001,4106.1,4105.9,9.19481961]
[1760118499237,0.001,4106.1,4105.9,10.3578618]
[1760118499958,0.001,4106.1,4105.9,6.6028618]
[1760118500143,0.001,4106.1,4105.9,12.3888618]
[1760118500475,0.001,4106.1,4105.9,12.3878618]
[1760118500831,1e-08,4106.5,4106.4,3.06882306]
[1760118501046,0.001,4107.9,4106.8,4.98858587]
[1760118501245,0.462,4110.7,4107.9,0.6336]
[1760118501434,2.89467592,4110.7,4108.1,2.5536]
[1760118501636,2.89467592,4110.7,4108.0,6.26204274]
[1760118501637,1.92,4110.6,4108.3,0.6336]
[1760118501941,0.462,4110.5,4108.5,3.06754657]
[1760118502137,0.462,4110.5,4108.7,0.6336]
[1760118502138,0.2894791,4110.4,4108.7,0.6336]
[1760118502359,2.4331198,4110.0,4109.6,0.1216]
[1760118502525,0.1216,4110.3,4109.6,0.1216]
[1760118502726,0.1216,4110.3,4109.7,3.113]
[1760118502928,0.1216,4110.3,4109.6,0.1216]
[1760118503129,0.28439431,4110.2,4108.5,0.4507]
[1760118503366,0.1216,4109.7,4109.1,0.1216]
[1760118503573,0.1216,4110.0,4109.3,0.1216]
[1760118504065,1.92,4110.5,4109.4,0.02433445]
[1760118504370,2.43314922,4109.9,4109.6,0.1216]
[1760118504581,1.92,4110.1,4109.6,0.1216]
[1760118504780,0.462,4111.0,4109.4,3.06703586]
[1760118504926,2.432439,4111.1,4109.7,0.4507]
[1760118505131,0.2652439,4111.0,4109.7,4.2017]
[1760118505326,4.213,4111.5,4109.7,4.2017]
[1760118505327,1.92,4111.1,4109.7,4.2017]
[1760118505547,2.43249817,4111.0,4109.7,3.751]
[1760118505758,0.462,4111.0,4109.3,0.6336]
[1760118506270,2.43302977,4110.2,4109.4,0.548]
[1760118506478,2.43308389,4110.1,4109.3,0.6336]
[1760118506658,2.43276413,4110.6,4109.6,2.43332684]
[1760118506860,2.14,4111.4,4109.5,3.75]
[1760118507065,0.22,4111.4,4109.6,0.6336]
[1760118507285,2.14,4111.4,4109.6,0.6336]
[1760118507575,2.43275726,4110.6,4109.7,2.43325797]
[1760118507736,2.43272999,4110.7,4109.8,3.748]
[1760118507932,0.243273,4110.7,4109.9,3.748]
[1760118508207,2.43239874,4111.2,4109.9,6.18113083]
[1760118508350,6.18002708,4111.8,4110.0,0.4750309]
[1760118508351,3.748,4111.8,4110.0,0.4750309]
[1760118508633,3.748,4111.8,4110.2,0.6336]
[1760118508864,3.748,4111.8,4110.9,2.43254244]
[1760118509047,2.029,4112.2,4110.9,3.049]
[1760118509261,2.43190661,4112.0,4111.0,3.748]
[1760118509447,0.2491,4112.1,4110.7,0.4507]
[1760118509782,0.2491,4112.1,4110.8,4.22302616]
[1760118509934,2.43137445,4112.9,4111.0,2.43248504]
[1760118510135,6.342,4113.9,4111.3,0.6336]
[1760118510136,0.462,4113.5,4111.3,0.6336]
[1760118510498,0.462,4113.5,4111.7,2.43207916]
[1760118510636,0.462,4113.5,4111.8,4.72732871]
[1760118510839,0.462,4113.5,4111.9,0.4507]
[1760118511064,2.43120261,4113.2,4112.0,0.02431906]
[1760118511260,2.43120261,4113.2,4111.4,0.4933606]
[1760118511261,0.462,4113.2,4111.4,0.4933606]
[1760118511479,2.43138416,4112.9,4111.9,3.751]
[1760118511648,1.92,4113.6,4111.9,3.751]
[1760118511975,1.92,4113.6,4111.9,4.2017]
[1760118512287,0.50329442,4113.5,4112.0,3.75]
[1760118512464,1.92,4113.6,4112.0,5.779]
[1760118512637,0.462,4113.8,4112.0,2.91813275]
[1760118512837,2.43139698,4112.9,4112.1,2.424]
[1760118513033,1.92,4113.7,4111.9,0.4507]
[1760118513239,2.43160862,4112.6,4112.0,5.777]
[1760118513548,0.001,4111.2,4110.7,0.1185]
[1760118513763,0.001,4111.2,4110.8,0.47502616]
[1760118513963,0.001,4111.2,4110.8,0.4507]
[1760118514168,0.001,4111.2,4110.7,0.5967632]
[1760118514169,0.001,4111.2,4110.9,0.4507]
[1760118514603,0.001,4111.2,4111.0,3.75]
[1760118514744,0.001,4111.2,4111.1,0.02432439]
[1760118515047,0.001,4111.2,4111.0,0.1216]
[1760118515236,2.43338544,4111.2,4110.7,0.1185]
[1760118515437,2.43343453,4111.2,4110.7,0.1185]
[1760118515633,2.43343453,4111.2,4110.6,3.8726]
[1760118515634,0.001,4111.2,4110.6,3.8726]
[1760118515864,0.001,4111.2,4110.6,0.1216]
[1760118516070,0.462,4111.1,4109.1,2.43360423]
[1760118516248,0.1216,4110.5,4109.7,0.1216]
[1760118516435,0.1216,4110.3,4109.7,0.1216]
[1760118516640,0.462,4111.1,4109.1,2.028]
[1760118516641,2.43249817,4111.0,4109.1,2.028]
[1760118516953,0.1216,4109.8,4109.2,3.31663563]
[1760118517151,0.1216,4109.8,4109.2,0.1216]
[1760118517357,2.43342435,4109.5,4109.2,0.1216]
[1760118517550,2.43345296,4109.4,4109.2,0.1216]
[1760118517774,0.1216,4109.6,4108.9,3.8736]
[1760118517953,2.55493671,4109.6,4108.9,3.8736]
[1760118518275,0.1216,4109.6,4108.9,7.18594337]
[1760118518472,0.1216,4109.6,4109.0,0.47503682]
[1760118518677,2.43291762,4110.3,4109.2,0.1216]
[1760118518678,0.1216,4109.9,4109.2,0.1216]
[1760118519175,2.43320842,4109.8,4109.2,0.1216]
[1760118519379,2.43326763,4109.7,4109.2,0.1216]
[1760118519538,0.1216,4109.9,4109.3,0.4507]
[1760118519741,0.1216,4109.9,4109.4,0.02433445]
[1760118519958,2.55475178,4109.9,4109.3,0.4507]
[1760118520156,0.462,4111.0,4109.3,1.08573]
[1760118520371,0.1216,4110.2,4109.5,0.1216]
[1760118520576,0.1216,4110.2,4109.5,2.55495581]
[1760118520950,0.1216,4110.2,4109.5,0.1216]
[1760118521542,2.432439,4111.1,4109.6,3.54193304]
[1760118521749,2.4325735,4110.9,4109.7,6.18221488]
[1760118521966,2.43274755,4110.6,4109.8,2.43315491]
[1760118522170,3.949,4111.2,4109.9,2.43314125]
[1760118522581,3.949,4111.2,4109.9,6.18114125]
[1760118522782,2.43268185,4110.7,4109.9,6.18114125]
[1760118523282,6.38138675,4111.2,4109.7,2.43325227]
[1760118523490,6.38138675,4111.2,4110.0,3.748]
[1760118523491,2.43279177,4110.6,4110.0,3.748]
[1760118523788,2.43279177,4110.6,4109.6,1.6939963]
[1760118524081,2.43314245,4110.0,4109.1,0.4507]
[1760118524289,2.43261652,4110.8,4108.6,0.48467862]
[1760118524480,0.462,4110.5,4108.8,2.028]
[1760118524784,0.462,4110.5,4108.6,2.245]
[1760118524950,4.209,4110.5,4108.6,4.165]
[1760118525158,0.24316086,4110.4,4108.6,5.02137]
[1760118525461,13.154,4110.2,4108.1,2.43420071]
[1760118525775,2.43351989,4109.3,4108.4,2.43403178]
[1760118525945,2.43345381,4109.4,4108.3,1.92]
[1760118526149,2.43345381,4109.4,4108.4,2.86968177]
[1760118526346,2.43339929,4109.5,4108.4,0.4357]
[1760118526550,0.462,4110.1,4108.4,3.3107]
[1760118526551,2.43365065,4109.1,4108.4,3.3107]
[1760118526777,0.51947987,4109.8,4108.7,2.43383317]
[1760118526959,2.43297163,4110.2,4108.8,0.024338]
[1760118527158,0.5194781,4110.2,4109.2,2.43352193]
[1760118527377,1.3020448,4110.9,4108.6,0.6336]
[1760118527378,0.5194781,4110.7,4109.4,0.6336]
[1760118527582,0.8732448,4111.3,4110.1,2.43301517]
[1760118527583,0.5194781,4111.1,4110.1,2.43301517]
[1760118527772,0.5194781,4111.5,4110.2,6.30445452]
[1760118527970,0.5194781,4111.4,4110.7,2.43262514]
[1760118528289,0.5194781,4111.1,4110.8,0.02432616]
[1760118528475,2.68359052,4111.7,4110.9,2.43255565]
[1760118528784,0.5212637,4111.6,4111.0,2.45681424]
[1760118528969,0.5212637,4111.5,4111.0,2.45681424]
[1760118529170,0.001,4111.7,4111.1,2.432439]
[1760118529371,0.52279299,4111.2,4110.8,3.753]
[1760118529575,0.001,4111.2,4110.7,3.753]
[1760118529781,0.001,4111.2,4110.8,0.45332616]
[1760118529958,0.001,4111.2,4111.0,2.43249817]
[1760118530158,0.52233337,4111.1,4110.8,0.429]
[1760118530396,0.001,4111.2,4111.1,2.432439]
[1760118530554,0.52333236,4111.2,4111.0,2.43248979]
[1760118530760,0.001,4111.2,4111.0,2.43248979]
[1760118530960,0.001,4111.2,4111.1,0.429]
[1760118531162,0.001,4111.2,4111.1,2.861439]
[1760118531362,0.001,4111.2,4111.1,2.88576339]
[1760118531864,0.001,4111.2,4111.1,2.432439]
[1760118532062,0.001,4111.1,4110.9,3.8736]
[1760118532313,0.001,4111.1,4110.8,3.751]
[1760118533292,0.001,4111.1,4110.9,2.43255012]
[1760118533603,0.001,4111.1,4111.0,2.45682315]
[1760118533766,0.001,4111.1,4110.9,2.43250622]
[1760118533962,0.001,4111.1,4111.0,2.45682315]
[1760118534399,0.001,4111.1,4111.0,2.88582315]
[1760118534600,0.001,4111.1,4111.0,4.06190112]
[1760118534900,0.001,4111.1,4111.0,6.5182261]
[1760118535078,0.001,4111.1,4111.0,6.49390112]
[1760118536270,0.001,4111.1,4110.5,0.429]
[1760118536569,0.001,4111.1,4110.6,5.776]
[1760118536773,0.001,4111.1,4111.0,2.43249817]
[1760118536970,0.001,4111.1,4111.0,2.45682315]
[1760118537205,0.001,4111.1,4111.0,2.88582315]
[1760118537917,0.001,4111.1,4111.0,2.86149817]
[1760118538070,0.001,4111.1,4110.5,0.429]
[1760118538280,0.001,4111.1,4110.8,2.43261476]
[1760118538480,0.001,4111.1,4110.9,3.749]
[1760118538712,0.001,4111.1,4111.0,2.45682315]
[1760118538900,0.001,4111.1,4111.0,2.86149817]
[1760118539083,0.001,4111.1,4111.0,2.88582315]
[1760118539279,0.001,4111.1,4111.0,4.18290547]
[1760118539492,0.001,4111.1,4111.0,6.10290547]
[1760118539695,0.001,4111.1,4111.0,6.07858049]
[1760118540503,0.001,4111.1,4111.0,3.64608232]
[1760118540706,0.001,4111.1,4111.0,4.78149817]
[1760118541026,0.001,4111.1,4111.0,7.24509817]
[1760118541188,0.001,4111.1,4111.0,9.16509817]
[1760118541693,0.001,4111.6,4111.1,4.352439]
[1760118542032,0.001,4111.7,4111.6,4.9857432]
[1760118542217,0.001,4111.7,4111.6,3.75]
[1760118542403,0.001,4111.7,4111.3,2.5536]
[1760118542718,0.001,4111.7,4111.4,5.777]
[1760118542918,0.001,4111.7,4111.3,0.6336]
[1760118543079,0.001,4111.7,4111.4,3.749]
[1760118543280,0.001,4111.7,4111.4,0.429]
[1760118543585,0.001,4111.7,4111.5,4.178]
[1760118543804,0.001,4111.7,4111.6,2.45646463]
[1760118543990,0.001,4111.7,4110.9,3.06615734]
[1760118544304,0.001,4111.7,4111.0,5.775]
[1760118544478,0.001,4111.7,4111.0,1.92]
[1760118544681,2.43308468,4111.7,4111.1,3.748]
[1760118544883,0.1226,4111.7,4111.1,3.748]
[1760118545081,0.1226,4111.7,4111.0,0.1216]
[1760118545280,0.52276097,4111.6,4110.6,2.027]
[1760118545516,0.001,4111.7,4110.7,2.34832675]
[1760118545517,0.1216,4111.2,4110.7,2.34832675]
[1760118545934,0.1216,4111.2,4110.7,2.324]
[1760118546148,2.43259382,4110.9,4110.2,2.027]
[1760118546311,0.4414,4111.2,4109.7,0.429]
[1760118546312,0.1216,4110.8,4110.1,0.1216]
[1760118546513,0.1216,4110.8,4110.2,3.747]
[1760118546946,0.1216,4110.8,4110.3,0.02432912]
[1760118547246,0.1216,4111.2,4110.6,2.43268679]
[1760118547549,0.52284429,4111.1,4110.7,2.45699318]
[1760118547744,0.1216,4111.2,4110.7,0.02432675]
[1760118547913,2.43265954,4110.8,4109.7,2.39753113]
[1760118548116,2.55433189,4110.7,4110.0,0.1216]
[1760118548352,0.1216,4110.2,4109.5,0.1216]
[1760118548515,0.52309141,4110.6,4108.8,0.1216]
[1760118548516,0.1216,4109.7,4108.8,0.1216]
[1760118548734,0.1216,4109.4,4108.9,0.02433741]
[1760118549258,0.88926866,4109.9,4108.3,0.429]
[1760118549412,2.43391909,4108.6,4108.0,2.029]
[1760118549619,2.43362293,4109.1,4108.0,2.029]
[1760118549944,2.43386678,4108.7,4108.1,0.02434215]
[1760118550132,2.43391909,4108.6,4108.0,2.029]
[1760118550454,0.4414,4109.3,4108.1,2.45855731]
[1760118550625,2.43387186,4108.7,4108.1,0.02434215]
[1760118550820,2.43368216,4109.0,4108.1,2.4585131]
[1760118551045,0.5229196,4109.2,4108.5,0.02633978]
[1760118551246,0.5229196,4109.5,4108.6,1.0626]
[1760118551445,0.4414,4109.4,4109.2,0.002]
[1760118551653,2.43350448,4109.3,4109.2,0.002]
[1760118551857,3.39782408,4109.3,4109.2,0.002]
[1760118552057,0.5229196,4109.3,4109.2,0.002]
[1760118552232,0.5229196,4109.8,4109.2,0.002]
[1760118552434,2.43350448,4109.3,4109.2,0.002]
[1760118552822,0.5229196,4109.4,4109.2,0.002]
[1760118553027,1.2004196,4109.9,4109.2,0.002]
[1760118553234,2.43344567,4109.4,4109.2,0.002]
[1760118553553,1.92,4110.0,4109.2,0.002]
[1760118553758,0.8732448,4110.7,4109.2,0.002]
[1760118553759,0.65316866,4110.6,4109.2,0.002]
[1760118554065,4.45967979,4110.7,4109.3,0.429]
[1760118554274,2.43308692,4110.1,4109.4,3.752]
[1760118554421,0.52217147,4110.6,4109.2,0.002]
[1760118554628,2.43303082,4110.1,4109.2,0.002]
[1760118554857,1.92,4110.6,4109.2,0.002]
[1760118555067,2.43279406,4110.5,4109.2,2.4355191]
[1760118555425,2.4684,4110.7,4109.5,2.4333574]
[1760118555426,2.43273488,4110.6,4109.5,2.4333574]
[1760118555770,2.4684,4110.7,4109.5,2.4333574]
[1760118555771,2.4684,4110.7,4109.6,0.02433326]
[1760118556140,2.43280758,4110.5,4109.7,2.43326763]
[1760118556340,2.43289864,4110.4,4109.5,6.1843316]
[1760118556666,1.92,4111.0,4109.3,2.86249365]
[1760118556667,4.35251794,4111.0,4109.4,0.6336]
[1760118556824,4.35261652,4110.8,4109.4,3.383]
[1760118557028,4.35279406,4110.5,4109.2,0.002]
[1760118557230,2.43309818,4110.0,4109.2,0.002]
[1760118557528,2.4330635,4110.1,4109.2,2.43551438]
[1760118557730,2.43315117,4109.9,4109.2,2.43555944]
[1760118558071,2.43316362,4109.9,4109.2,0.002]
[1760118558229,2.3561,4110.7,4109.3,14.5]
[1760118558429,2.43273488,4110.6,4109.3,14.5]
[1760118558631,2.43285325,4110.4,4109.3,14.5]
[1760118558963,2.43344527,4109.4,4109.3,14.5]
[1760118559462,2.86954527,4109.4,4109.3,14.5]
[1760118559631,4.78954527,4109.4,4109.3,14.5]
[1760118560636,4.78954527,4109.4,4109.2,0.002]
[1760118560637,2.55510448,4109.3,4109.2,0.002]
[1760118560837,2.99120448,4109.3,4109.2,0.002]
[1760118561040,0.5577,4109.3,4109.2,0.002]
[1760118561239,2.99120448,4109.3,4109.2,0.002]
[1760118562836,34.78960448,4109.3,4109.2,0.002]
[1760118563034,35.94502438,4109.3,4109.2,0.002]
[1760118563968,34.35391909,4108.6,4108.5,1e-08]
[1760118564141,16.30791909,4108.6,4108.5,1e-08]
[1760118564342,15.83541909,4108.6,4108.5,1e-08]
[1760118565454,14.63241909,4108.6,4108.5,1e-08]
[1760118565957,37.61541909,4108.6,4108.5,1e-08]
[1760118566980,38.24901909,4108.6,4108.5,1e-08]
[1760118567280,41.21301909,4108.6,4108.5,1e-08]
[1760118568178,40.57941909,4108.6,4108.5,1e-08]
[1760118568583,24.35841909,4108.6,4108.5,1e-08]
[1760118569351,41.21301909,4108.6,4108.5,1e-08]
[1760118569557,41.73348682,4108.6,4108.5,1e-08]
[1760118570585,41.09988682,4108.6,4108.5,1e-08]
[1760118570777,15.73388682,4108.6,4108.5,1e-08]
[1760118570975,15.21341909,4108.6,4108.5,1e-08]
[1760118571589,15.73386223,4108.6,4108.5,1e-08]
[1760118571752,11.98286223,4108.6,4108.5,1e-08]
[1760118571958,14.32541909,4108.6,4108.5,1e-08]
[1760118572286,10.57841909,4108.6,4108.5,1e-08]
[1760118573210,41.09918779,4108.6,4108.5,1e-08]
[1760118573860,11.09918779,4108.6,4108.5,1e-08]
[1760118574061,10.57841909,4108.6,4108.5,1e-08]
[1760118574260,10.57941909,4108.6,4108.5,1e-08]
[1760118575272,11.10116752,4108.6,4108.5,1e-08]
[1760118576703,11.10144101,4108.6,4108.5,1e-08]
[1760118576909,10.57941909,4108.6,4108.5,1e-08]
[1760118577402,11.10183056,4108.6,4108.5,1e-08]
[1760118577696,41.10183056,4108.6,4108.5,1e-08]
[1760118578059,33.05783056,4108.6,4108.5,1e-08]
[1760118578293,2.43421533,4108.1,4108.0,0.002]
[1760118578458,38.10121533,4108.1,4108.0,0.002]
[1760118578659,11.6521268,4108.1,4108.0,0.002]
[1760118578980,21.6521268,4108.1,4108.0,0.002]
[1760118579189,13.6811268,4108.1,4108.0,0.002]
[1760118579384,41.0991268,4108.1,4108.0,0.002]
[1760118579572,14.40656662,4108.1,4108.0,0.002]
[1760118579787,13.2861268,4108.1,4108.0,0.002]
[1760118580303,41.0991268,4108.1,4108.0,0.002]
[1760118580504,9.0691268,4108.1,4108.0,0.002]
[1760118581776,4.35421533,4108.1,4108.0,0.002]
[1760118581981,8.09921533,4108.1,4108.0,0.002]
[1760118582295,6.17921533,4108.1,4108.0,0.002]
[1760118582488,3.745,4108.1,4108.0,0.002]
[1760118582688,2.43421533,4108.1,4108.0,0.002]
[1760118582892,2.88071533,4108.1,4108.0,0.002]
[1760118583485,2.43421533,4108.1,4108.0,0.002]
[1760118584806,2.95727388,4108.1,4108.0,0.002]
[1760118585111,2.43421533,4108.1,4108.0,0.002]
[1760118585814,0.65343982,4108.8,4108.0,0.002]
[1760118586018,0.1216,4108.4,4108.0,0.002]
[1760118586218,3.743,4108.5,4108.0,0.002]
[1760118586413,2.43421533,4108.1,4108.0,0.002]
[1760118587079,2.95797574,4108.1,4108.0,0.002]
[1760118588131,3.742,4108.5,4108.0,0.002]
[1760118588416,2.55581533,4108.1,4108.0,0.002]
[1760118588780,3.07993572,4108.1,4108.0,0.002]
[1760118588980,0.64572039,4108.1,4108.0,0.002]
[1760118589187,0.52412039,4108.5,4108.0,1.8979]
[1760118589431,2.43420894,4108.2,4108.0,0.002]
[1760118589741,2.43420635,4108.2,4108.0,0.002]
[1760118589947,2.95822673,4108.3,4108.0,0.002]
[1760118590155,0.64572039,4108.4,4108.0,0.002]
[1760118590315,0.64572039,4108.4,4108.0,0.4477]
[1760118590635,3.07976216,4108.4,4108.1,0.1068]
[1760118590839,0.52412039,4108.3,4108.1,0.1068]
[1760118591138,2.43421533,4108.1,4108.0,0.002]
[1760118591346,2.95833572,4108.1,4108.0,0.002]
[1760118594830,0.52412039,4108.1,4108.0,0.002]
[1760118595034,2.95833572,4108.1,4108.0,0.002]
[1760118596038,2.43421533,4108.1,4108.0,0.002]
[1760118596244,0.52412039,4108.2,4108.0,0.002]
[1760118596706,3.07993572,4108.1,4108.0,0.002]
[1760118597041,2.55581533,4108.1,4108.0,0.002]
[1760118597247,0.1216,4108.1,4108.0,0.002]
[1760118597421,2.55581533,4108.1,4108.0,0.002]
[1760118597621,3.07993572,4108.1,4108.0,0.002]
[1760118597819,0.1216,4108.1,4108.0,0.002]
[1760118598023,0.52537905,4108.6,4108.0,2.0195]
[1760118598342,2.43392029,4108.6,4108.1,0.1068]
[1760118598517,2.43392029,4108.6,4108.3,14.5]
[1760118598518,2.43403758,4108.4,4108.3,14.5]
[1760118600521,2.43399094,4108.5,4108.3,14.5]
[1760118600846,0.52525294,4108.7,4108.3,14.5]
[1760118601041,0.64685294,4108.8,4108.4,3.76434037]
[1760118601243,0.52525294,4109.3,4108.6,0.6336]
[1760118601446,2.929,4109.7,4108.7,3.74]
[1760118601771,2.43315494,4109.9,4109.4,14.5]
[1760118602075,2.43326952,4109.7,4109.5,3.74]
[1760118602220,0.52479607,4110.1,4109.5,3.74]
[1760118602408,0.52479607,4110.1,4108.8,0.4457]
[1760118602610,3.40114339,4110.1,4109.6,14.5]
[1760118602814,2.66586763,4109.7,4109.6,14.5]
[1760118603041,13.30326763,4109.7,4109.6,14.5]
[1760118603246,7.65479607,4109.7,4109.6,14.5]
[1760118603547,7.13,4109.7,4109.6,14.5]
[1760118603732,9.56326763,4109.7,4109.6,14.5]
[1760118605529,2.43409682,4108.3,4108.0,0.002]
[1760118605824,2.43421533,4108.1,4108.0,0.002]
[1760118606039,6.17421533,4108.1,4108.0,0.002]
[1760118606417,10.56551533,4108.1,4108.0,0.002]
[1760118606617,11.08972153,4108.1,4108.0,0.002]
[1760118606926,41.08972153,4108.1,4108.0,0.002]
[1760118607127,41.74316135,4108.1,4108.0,0.002]
[1760118607324,2.43445236,4107.7,4107.6,1e-08]
[1760118607523,8.09445236,4107.7,4107.6,1e-08]
[1760118607748,9.06195856,4107.7,4107.6,1e-08]
[1760118608009,39.71539838,4107.7,4107.6,1e-08]
[1760118608416,39.71539838,4107.7,4107.1,0.002]
[1760118608417,30.0,4107.4,4107.1,1e-08]
[1760118608618,30.0,4107.4,4104.5,0.1185]
[1760118608619,2.43551961,4105.9,4104.5,0.1185]
[1760118608844,8.43711961,4105.9,4104.5,0.1185]
[1760118609054,8.88041961,4105.9,4104.6,14.5]
[1760118609369,11.32467188,4105.9,4104.6,14.5]
[1760118610054,32.43575691,4105.5,4105.4,1e-08]
[1760118610217,38.62000918,4105.5,4105.4,1e-08]
[1760118610413,38.53905691,4105.5,4105.4,1e-08]
[1760118610618,39.06192216,4105.5,4105.4,1e-08]
[1760118611931,39.06192216,4105.5,4103.6,14.5]
[1760118611932,2.43599425,4105.1,4103.6,14.5]
[1760118612122,57.50976163,4105.1,4103.6,14.5]
[1760118612468,58.47592688,4105.1,4103.6,14.5]
[1760118613350,27.1551595,4105.1,4103.6,14.5]
[1760118613557,6.82829425,4105.1,4103.7,0.02436825]
[1760118613770,2.3633,4105.1,4103.6,14.9457]
[1760118613923,41.56997153,4105.1,4103.6,14.5]
[1760118614118,2.43617228,4104.8,4102.5,0.1185]
[1760118614357,2.43617228,4104.8,4102.6,0.02437478]
[1760118614358,2.43683235,4103.7,4102.6,0.02437478]
[1760118614547,2.43688468,4103.6,4102.7,14.5]
[1760118614854,10.4433,4104.7,4103.0,2.43719199]
[1760118614855,3.742,4103.8,4103.0,2.43719199]
[1760118615047,3.742,4103.8,4103.1,0.59782074]
[1760118615249,3.742,4103.8,4103.2,2.43706791]
[1760118615454,3.742,4103.8,4103.3,14.5]
[1760118615619,3.742,4103.8,4103.4,0.47007003]
[1760118615954,2.43578656,4105.5,4103.1,0.59782074]
[1760118615955,2.43639998,4104.5,4103.5,2.90701223]
[1760118616152,3.742,4104.4,4103.6,0.29070122]
[1760118616353,3.742,4104.3,4103.7,14.5]
[1760118616555,2.43659711,4104.1,4103.7,14.5]
[1760118616731,3.742,4104.5,4103.7,14.5]
[1760118616936,2.03,4104.8,4103.8,0.4441]
[1760118617133,3.742,4104.6,4103.8,0.4441]
[1760118617342,3.742,4104.6,4103.9,1.49441]
[1760118617858,3.742,4104.6,4103.7,14.5]
[1760118618028,2.43645983,4104.4,4103.8,0.02436765]
[1760118618227,3.742,4104.3,4103.8,0.02436765]
[1760118618732,6.17848017,4104.3,4103.8,0.02436765]
[1760118619039,6.17848616,4104.3,4103.8,0.02436765]
[1760118619240,2.43676592,4103.8,4103.7,14.5]
[1760118619473,6.17876592,4103.8,4103.7,14.5]
[1760118620079,6.61236592,4103.8,4102.3,2.43765614]
[1760118620367,6.61236592,4103.8,4102.2,0.4441]
[1760118620368,2.43717102,4103.2,4102.4,3.743]
[1760118620571,2.43721448,4103.1,4102.9,14.5]
[1760118620727,2.43724104,4103.0,4102.9,14.5]
[1760118620933,2.4373232,4102.9,4102.0,3.8498]
[1760118621238,2.43766454,4102.3,4101.8,0.002]
[1760118621444,2.43766454,4102.3,4102.1,14.5]
[1760118621445,2.43771634,4102.2,4102.1,14.5]
[1760118621872,3.743,4102.3,4102.1,14.5]
[1760118622070,2.43789463,4101.9,4101.8,0.002]
[1760118622578,0.4336,4102.6,4101.8,0.002]
[1760118622776,2.43778739,4102.1,4101.8,0.002]
[1760118622960,3.744,4102.0,4101.8,0.002]
[1760118623343,3.744,4102.0,4101.8,0.24127971]
[1760118623552,3.744,4102.0,4101.8,0.68537971]
[1760118623871,3.744,4102.5,4101.9,0.46847894]
[1760118624030,0.1216,4102.3,4101.9,0.46847894]
[1760118624236,0.1216,4102.3,4101.9,2.90636977]
[1760118624432,2.43742597,4102.7,4101.9,2.90636977]
[1760118624433,0.1216,4102.7,4102.4,2.43759528]
[1760118624759,0.1216,4102.7,4102.2,0.1205]
[1760118624959,0.1216,4102.7,4102.3,0.4441]
[1760118625158,0.1216,4102.7,4102.4,2.90606265]
[1760118625353,0.1216,4102.7,4102.4,0.4441]
[1760118625599,0.1216,4102.7,4102.5,0.4441]
[1760118625802,0.1216,4102.7,4102.5,0.74431949]
[1760118626099,0.1216,4102.7,4102.5,3.1818391]
[1760118626301,1.92,4103.6,4102.7,2.43741334]
[1760118626496,0.1216,4103.0,4102.8,0.02437359]
[1760118626656,0.4336,4104.1,4102.7,2.43736417]
[1760118626859,0.1216,4103.5,4102.8,2.55894623]
[1760118627056,0.1216,4103.5,4103.0,2.43723328]
[1760118627299,0.1216,4103.5,4103.1,0.02437181]
[1760118627605,0.1216,4103.5,4103.2,0.4441]
[1760118627815,0.1216,4103.5,4103.3,0.02437062]
[1760118628113,0.1216,4104.2,4103.5,2.43694407]
[1760118628255,0.1216,4104.2,4103.4,0.5657]
[1760118628256,0.1216,4104.2,4103.6,0.74680147]
[1760118628454,0.87359843,4106.3,4104.1,0.1155]
[1760118628455,0.1216,4104.6,4104.1,0.1155]
[1760118628654,2.5576573,4105.0,4104.3,0.1216]
[1760118628898,0.1216,4105.0,4104.3,0.1216]
[1760118629103,0.1216,4105.0,4104.5,2.43635029]
[1760118629407,12.43518473,4106.5,4104.5,2.43635029]
[1760118629408,3.012,4105.9,4104.9,2.43611293]
[1760118629557,2.43592128,4105.3,4104.8,0.1216]
[1760118629901,0.1216,4105.5,4104.8,0.1216]
[1760118630059,2.5573693,4105.5,4104.8,2.55776223]
[1760118630260,0.1216,4105.5,4104.8,1.0943061]
[1760118630571,0.1216,4105.5,4104.8,0.1216]
[1760118630775,2.43594977,4105.2,4104.8,0.1216]
[1760118630978,2.43582955,4105.4,4104.8,0.1216]
[1760118631267,2.55737392,4105.5,4104.8,0.1216]
[1760118631473,0.1216,4105.5,4105.0,2.43600461]
[1760118631801,0.1216,4105.5,4104.8,0.1216]
[1760118632105,0.1216,4105.5,4104.8,0.43177379]
[1760118632258,2.43592816,4105.3,4104.8,0.1216]
[1760118632458,2.43582596,4105.4,4104.8,0.1216]
[1760118632654,0.1216,4105.5,4104.8,0.1216]
[1760118632885,0.1216,4105.5,4105.0,2.43604886]
[1760118633105,1.92,4106.7,4105.1,0.4441]
[1760118633305,0.51904839,4106.9,4106.6,0.1242]
[1760118633467,0.49146769,4107.7,4106.6,0.1242]
[1760118633871,2.43483529,4107.1,4106.6,0.1242]
[1760118634076,2.4347615,4107.2,4106.6,0.1242]
[1760118634289,3.745,4107.6,4106.6,0.1242]
[1760118634459,2.43481772,4107.1,4106.6,0.1242]
[1760118634666,3.745,4107.6,4106.6,0.1242]
[1760118634965,2.43506044,4106.7,4106.1,0.1242]
[1760118635271,2.43544682,4106.1,4105.2,4.28701]
[1760118635517,2.43555902,4105.9,4105.2,3.8682]
[1760118635809,3.744,4106.4,4105.2,3.8682]